bitfinex-derivatives/quotes_BTCF0:USTF0_20260106
["timestamp","ask_amount","ask_price","bid_price","bid_amount"]
[1767710946040,0.09569524,93691.0,93665.0,0.010678]
[1767710946245,0.14683704,93688.0,93653.0,0.00010653]
[1767710946540,0.09566024,93687.0,93661.0,0.010679]
[1767710946741,0.09566024,93687.0,93653.0,0.00010653]
[1767710946948,0.09566024,93687.0,93668.0,0.010678]
[1767710947146,0.09566024,93687.0,93664.0,0.010679]
[1767710947335,0.09556158,93710.0,93693.0,0.010675]
[1767710947535,0.09556158,93710.0,93671.0,0.14364877]
[1767710947536,0.09072,93736.0,93713.0,0.010673]
[1767710947736,0.9074,93769.0,93701.0,0.18659787]
[1767710947737,0.09072,93735.0,93701.0,0.18659787]
[1767710947938,0.05127546,93751.0,93708.0,0.010674]
[1767710947939,0.09072,93734.0,93708.0,0.010674]
[1767710948138,0.09072,93734.0,93675.0,0.08462441]
[1767710948139,0.05127546,93732.0,93690.0,0.15921571]
[1767710948343,0.05127546,93732.0,93657.0,0.09422028]
[1767710948344,0.04127546,93730.0,93686.0,0.09587787]
[1767710948545,0.373628,93757.0,93686.0,0.09587787]
[1767710948546,5.431e-05,93729.0,93707.0,0.010674]
[1767710948856,5.431e-05,93729.0,93706.0,0.010674]
[1767710949146,5.431e-05,93729.0,93703.0,0.09285473]
[1767710949341,5.431e-05,93729.0,93703.0,0.09072]
[1767710949342,0.010672,93720.0,93703.0,0.09072]
[1767710949545,0.10623458,93717.0,93695.0,0.09072]
[1767710949745,0.19695458,93717.0,93695.0,0.09072]
[1767710949944,0.010673,93713.0,93695.0,0.09072]
[1767710950151,0.010674,93709.0,93688.0,0.09072]
[1767710950449,0.09556158,93713.0,93692.0,0.00213473]
[1767710950649,0.09556158,93713.0,93688.0,0.09072]
[1767710950854,0.09072,93717.0,93680.0,0.09072]
[1767710950855,0.09556158,93706.0,93680.0,0.09072]
[1767710951152,0.09556158,93706.0,93672.0,0.010678]
[1767710951153,0.09556158,93698.0,93663.0,0.09072]
[1767710951349,0.010676,93684.0,93663.0,0.09072]
[1767710951569,5.431e-05,93683.0,93663.0,0.09072]
[1767710951852,0.09561589,93683.0,93659.0,0.00213542]
[1767710952253,0.09561589,93683.0,93660.0,0.010679]
[1767710952447,0.09561589,93683.0,93659.0,0.00213542]
[1767710952653,5.431e-05,93683.0,93661.0,0.010679]
[1767710953253,5.431e-05,93683.0,93673.0,0.010677]
[1767710953451,0.010673,93710.0,93680.0,0.10655487]
[1767710953649,0.09076,93711.0,93681.0,0.09076]
[1767710953845,0.09556158,93719.0,93682.0,0.09587787]
[1767710954044,0.09556158,93719.0,93685.0,0.09587787]
[1767710954245,0.09556158,93719.0,93693.0,0.010675]
[1767710954550,0.010673,93713.0,93694.0,0.09076]
[1767710954757,0.010673,93713.0,93695.0,0.09076]
[1767710955253,0.09556158,93709.0,93690.0,0.09076]
[1767710955455,0.09076,93720.0,93690.0,0.010676]
[1767710955650,0.09076,93720.0,93685.0,0.09076]
[1767710955651,0.09076,93720.0,93696.0,0.010675]
[1767710955863,0.09076,93720.0,93699.0,0.010675]
[1767710956157,0.101432,93720.0,93697.0,0.09076]
[1767710956655,0.09076,93720.0,93697.0,0.09076]
[1767710957057,0.09076,93720.0,93693.0,0.010675]
[1767710958153,0.010671,93735.0,93705.0,0.010674]
[1767710958351,0.09556158,93736.0,93711.0,0.010673]
[1767710958554,0.09076,93743.0,93711.0,0.09587787]
[1767710959041,0.09076,93754.0,93722.0,0.09587787]
[1767710959246,0.05127546,93774.0,93728.0,0.09587787]
[1767710959247,0.010668,93758.0,93728.0,0.09587787]
[1767710959442,0.09556158,93760.0,93723.0,0.09076]
[1767710959648,0.01067,93743.0,93723.0,0.09076]
[1767710959852,0.09076,93745.0,93723.0,0.09076]
[1767710960155,0.09076,93745.0,93723.0,0.101432]
[1767710960354,0.09076,93752.0,93725.0,0.010672]
[1767710960550,0.101429,93752.0,93724.0,0.010672]
[1767710960848,0.101429,93752.0,93723.0,0.18663787]
[1767710960849,0.09556158,93751.0,93716.0,0.09076]
[1767710961152,0.01067,93742.0,93716.0,0.09076]
[1767710961452,0.01067,93744.0,93716.0,0.09076]
[1767710961849,0.09556158,93747.0,93716.0,0.09076]
[1767710962049,0.01067,93744.0,93716.0,0.09076]
[1767710962753,0.010669,93746.0,93716.0,0.09076]
[1767710962952,0.09556158,93743.0,93716.0,0.09076]
[1767710963160,0.010671,93736.0,93716.0,0.09076]
[1767710963344,0.010671,93727.0,93709.0,0.09076]
[1767710963549,0.010671,93731.0,93707.0,0.09076]
[1767710963749,0.09556158,93734.0,93706.0,0.09076]
[1767710963954,0.09556158,93734.0,93707.0,0.010674]
[1767710964148,0.010671,93733.0,93706.0,0.09076]
[1767710964348,0.010671,93733.0,93706.0,0.101434]
[1767710964555,0.09556158,93734.0,93706.0,0.09076]
[1767710964859,0.09556158,93734.0,93698.0,0.09587787]
[1767710964860,0.010672,93720.0,93696.0,0.09076]
[1767710965252,0.09076,93721.0,93696.0,0.09076]
[1767710965552,0.09076,93721.0,93697.0,0.010675]
[1767710965856,0.09076,93721.0,93696.0,0.09076]
[1767710966453,0.09076,93721.0,93696.0,0.101435]
[1767710966846,0.010673,93715.0,93689.0,0.010676]
[1767710967047,0.09076,93721.0,93700.0,0.010674]
[1767710967346,0.09556158,93744.0,93704.0,0.09587787]
[1767710967548,0.010671,93734.0,93705.0,0.18663787]
[1767710967749,0.010669,93753.0,93682.0,0.09587787]
[1767710967750,0.010673,93710.0,93682.0,0.09587787]
[1767710967956,0.010674,93708.0,93682.0,0.09587787]
[1767710968154,0.09076,93709.0,93682.0,0.09587787]
[1767710968155,0.010674,93705.0,93682.0,0.09587787]
[1767710968554,0.09556158,93704.0,93674.0,0.09076]
[1767710968749,0.09556158,93704.0,93677.0,0.010677]
[1767710968950,0.09076,93709.0,93675.0,0.09587787]
[1767710969145,0.09556158,93716.0,93685.0,0.010676]
[1767710969358,0.13129791,93819.0,93738.0,0.0477709]
[1767710969655,0.09076,93823.0,93761.0,0.0477709]
[1767710969656,0.1767,93809.0,93761.0,0.0477709]
[1767710969966,0.1767,93809.0,93749.0,0.0477709]
[1767710969967,0.09076,93808.0,93783.0,0.010665]
[1767710970254,0.010657,93856.0,93786.0,0.010665]
[1767710970255,0.09076,93807.0,93786.0,0.010665]
[1767710970453,0.010657,93856.0,93770.0,0.0477709]
[1767710970454,0.09076,93809.0,93779.0,0.09587787]
[1767710970650,0.09076,93811.0,93799.0,0.010663]
[1767710970957,0.09076,93811.0,93787.0,0.09587787]
[1767710971161,0.09076,93811.0,93794.0,0.010664]
[1767710971349,0.09076,93811.0,93798.0,0.010663]
[1767710971549,0.09076,93820.0,93787.0,0.09587787]
[1767710971750,0.09072,93819.0,93787.0,0.09587787]
[1767710971951,0.09351559,93830.0,93780.0,0.09182769]
[1767710972262,0.09351559,93824.0,93785.0,0.09182769]
[1767710972449,0.09072,93826.0,93787.0,0.09182769]
[1767710972645,0.09072,93846.0,93817.0,0.010661]
[1767710972855,0.09072,93846.0,93798.0,0.09182769]
[1767710972856,0.09072,93847.0,93813.0,0.09072]
[1767710973047,0.363,93872.0,93804.0,0.010663]
[1767710973048,0.10902234,93882.0,93818.0,0.05700444]
[1767710973247,0.10902234,93882.0,93837.0,0.09182769]
[1767710973248,0.09351559,93880.0,93837.0,0.09182769]
[1767710973449,0.09351559,93865.0,93823.0,0.09182769]
[1767710973660,0.09351559,93861.0,93824.0,0.09072]
[1767710973860,0.18423559,93861.0,93834.0,0.010659]
[1767710974161,0.18423559,93861.0,93833.0,0.09072]
[1767710974357,0.09351559,93860.0,93833.0,0.09072]
[1767710974562,0.09351559,93858.0,93826.0,0.09072]
[1767710974859,0.09072,93861.0,93826.0,0.09072]
[1767710975051,0.09072,93861.0,93827.0,0.09182769]
[1767710975252,0.09072,93868.0,93827.0,0.09182769]
[1767710975456,0.09072,93868.0,93836.0,0.010659]
[1767710975763,0.10417159,93867.0,93828.0,0.09182769]
[1767710975965,0.010656,93862.0,93828.0,0.09182769]
[1767710976258,0.09351559,93862.0,93828.0,0.09182769]
[1767710976460,0.09351559,93862.0,93837.0,0.010659]
[1767710976658,0.010657,93855.0,93826.0,0.09072]
[1767710976848,0.09351559,93858.0,93826.0,0.09072]
[1767710977151,0.010657,93851.0,93826.0,0.09072]
[1767710977552,0.09351559,93869.0,93845.0,0.010658]
[1767710977849,0.09068,93868.0,93839.0,0.09068]
[1767710978055,0.010655,93872.0,93843.0,0.10248569]
[1767710978358,0.09351559,93876.0,93844.0,0.09068]
[1767710978560,0.010655,93871.0,93844.0,0.09068]
[1767710978949,0.010656,93867.0,93844.0,0.09068]
[1767710979465,0.010656,93863.0,93840.0,0.09182769]
[1767710979665,0.09351559,93868.0,93840.0,0.09182769]
[1767710979960,0.09351559,93868.0,93841.0,0.010658]
[1767710980163,0.09351559,93868.0,93845.0,0.010658]
[1767710980365,0.010655,93875.0,93845.0,0.010658]
[1767710980554,0.010655,93869.0,93838.0,0.10248669]
[1767710980755,0.010655,93874.0,93842.0,0.010658]
[1767710981063,0.010655,93874.0,93838.0,0.09182769]
[1767710981064,0.09351559,93875.0,93838.0,0.09182769]
[1767710981368,0.09068,93876.0,93846.0,0.010658]
[1767710981369,0.010655,93873.0,93846.0,0.010658]
[1767710981657,0.060654,93882.0,93849.0,0.010658]
[1767710981858,0.09068,93881.0,93858.0,0.010657]
[1767710982160,0.05,93882.0,93864.0,0.010656]
[1767710982461,0.05,93882.0,93866.0,0.010656]
[1767710982665,0.09351559,93908.0,93866.0,0.09182769]
[1767710982854,0.010652,93894.0,93866.0,0.09182769]
[1767710983056,0.010653,93887.0,93866.0,0.09182769]
[1767710983666,0.010653,93892.0,93866.0,0.09182769]
[1767710984256,0.09068,93895.0,93865.0,0.09068]
[1767710984452,0.24317793,93910.0,93866.0,0.010656]
[1767710984658,0.010654,93883.0,93865.0,0.09068]
[1767710985265,0.09064,93883.0,93849.0,0.09064]
[1767710985566,0.010656,93862.0,93849.0,0.09064]
[1767710985956,0.010655,93870.0,93849.0,0.09064]
[1767710986165,0.010656,93867.0,93849.0,0.09064]
[1767710986363,0.09064,93872.0,93849.0,0.09064]
[1767710986965,0.010656,93866.0,93849.0,0.09064]
[1767710987469,0.05902234,93888.0,93849.0,0.09064]
[1767710987470,0.09064,93880.0,93856.0,0.010657]
[1767710987665,0.09064,93884.0,93865.0,0.010656]
[1767710987962,0.09064,93888.0,93865.0,0.09182769]
[1767710988162,0.010654,93884.0,93865.0,0.09182769]
[1767710988568,0.010653,93889.0,93869.0,0.010655]
[1767710988963,0.00212996,93899.0,93877.0,0.010654]
[1767710989160,0.00212996,93899.0,93879.0,0.010654]
[1767710989359,0.00212996,93899.0,93878.0,0.09064]
[1767710989560,0.010652,93895.0,93878.0,0.09064]
[1767710989764,0.18628555,93899.0,93878.0,0.101294]
[1767710989765,0.09276996,93899.0,93878.0,0.101294]
[1767710989963,0.010652,93895.0,93878.0,0.09064]
[1767710990157,0.09276996,93899.0,93878.0,0.09064]
[1767710990767,0.010652,93894.0,93878.0,0.09064]
[1767710990969,0.00212996,93899.0,93879.0,0.10248169]
[1767710991163,0.00212996,93899.0,93879.0,0.09182769]
[1767710991360,0.00212996,93899.0,93880.0,0.010654]
[1767710991565,0.00212996,93899.0,93879.0,0.09182769]
[1767710991961,0.09564555,93899.0,93878.0,0.09064]
[1767710992166,0.010652,93896.0,93864.0,0.09182769]
[1767710992367,0.09276996,93899.0,93878.0,0.010654]
[1767710992567,0.010652,93895.0,93873.0,0.010655]
[1767710992769,0.09276996,93899.0,93880.0,0.010654]
[1767710993070,0.09276996,93899.0,93870.0,0.09182769]
[1767710993071,0.01065,93916.0,93892.0,0.010653]
[1767710993270,0.09564487,93929.0,93892.0,0.010653]
[1767710993271,0.10125,93920.0,93892.0,0.010653]
[1767710993474,0.0906,93920.0,93899.0,0.010652]
[1767710993669,0.0906,93920.0,93889.0,0.0906]
[1767710993670,0.10125,93920.0,93896.0,0.010652]
[1767710993870,0.01065,93914.0,93895.0,0.09182769]
[1767710994060,0.00212928,93929.0,93895.0,0.09182769]
[1767710994259,0.010649,93923.0,93895.0,0.09182769]
[1767710994468,0.010649,93927.0,93900.0,0.010652]
[1767710994970,0.00212928,93929.0,93907.0,0.10247869]
[1767710995174,0.00212928,93929.0,93907.0,0.09182769]
[1767710995374,0.010649,93925.0,93907.0,0.09182769]
[1767710995677,0.010649,93928.0,93901.0,0.0906]
[1767710995870,0.010649,93924.0,93901.0,0.0906]
[1767710996176,0.010649,93921.0,93901.0,0.0906]
[1767710996374,0.09351559,93928.0,93888.0,0.0906]
[1767710996568,0.00212928,93929.0,93885.0,0.09182769]
[1767710996569,0.09351559,93920.0,93886.0,0.18242769]
[1767710996969,0.010651,93911.0,93886.0,0.19308069]
[1767710997169,0.01065,93920.0,93897.0,0.14883213]
[1767710997374,0.010649,93922.0,93898.0,0.10247969]
[1767710997575,0.010649,93922.0,93898.0,0.09182769]
[1767710997875,0.00212928,93929.0,93903.0,0.05700444]
[1767710998078,0.00212928,93929.0,93905.0,0.010651]
[1767710998276,0.00212928,93929.0,93905.0,0.10247869]
[1767710998471,0.10416159,93949.0,93897.0,0.0906]
[1767710998472,0.0906,93945.0,93910.0,0.09182769]
[1767710998673,0.010649,93928.0,93911.0,0.0906]
[1767710999078,0.010648,93932.0,93911.0,0.0906]
[1767710999381,0.09351559,93929.0,93898.0,0.09182769]
[1767710999674,0.010649,93927.0,93898.0,0.10247969]
[1767710999874,0.0906,93928.0,93904.0,0.09182769]
[1767711000073,0.0906,93928.0,93905.0,0.010651]
[1767711000380,0.0906,93948.0,93925.0,0.010649]
[1767711000577,0.0906,93947.0,93925.0,0.008517]
[1767711000876,0.010646,93951.0,93925.0,0.09251773]
[1767711001068,0.010646,93949.0,93925.0,0.09251773]
[1767711001265,0.010646,93949.0,93922.0,0.010649]
[1767711001266,0.101245,93961.0,93933.0,0.11006593]
[1767711001470,0.010645,93956.0,93933.0,0.09941793]
[1767711001669,0.0906,93961.0,93925.0,0.09941793]
[1767711001876,0.010645,93956.0,93927.0,0.09941793]
[1767711002079,0.010645,93956.0,93929.0,0.09941793]
[1767711002265,0.0906,93961.0,93934.0,0.09941793]
[1767711002574,0.0906,93961.0,93938.0,0.010647]
[1767711002773,0.010645,93957.0,93936.0,0.09941793]
[1767711003272,0.010645,93959.0,93932.0,0.0906]
[1767711003473,0.010647,93940.0,93920.0,0.0906]
[1767711003664,0.010646,93949.0,93925.0,0.010649]
[1767711003869,0.010646,93953.0,93932.0,0.010648]
[1767711004077,0.09056,93954.0,93929.0,0.05420205]
[1767711004273,0.09078828,93983.0,93941.0,0.05420205]
[1767711004574,0.010642,93986.0,93962.0,0.010645]
[1767711004763,0.010642,93990.0,93965.0,0.010644]
[1767711004968,0.1012,94007.0,93971.0,0.010644]
[1767711004969,0.09056,94007.0,93971.0,0.010644]
[1767711005163,0.101199,94015.0,93972.0,0.11006193]
[1767711005364,0.101199,94015.0,93972.0,0.09941793]
[1767711005365,0.09056,94015.0,93972.0,0.09941793]
[1767711005565,0.010641,93993.0,93972.0,0.09941793]
[1767711005875,0.01064,94008.0,93972.0,0.09941793]
[1767711006076,0.010642,93986.0,93972.0,0.09941793]
[1767711006276,0.010642,93982.0,93963.0,0.09056]
[1767711006572,0.010643,93980.0,93963.0,0.09056]
[1767711007177,0.010643,93977.0,93963.0,0.09056]
[1767711007379,0.010643,93981.0,93963.0,0.09056]
[1767711007578,0.010643,93977.0,93963.0,0.09056]
[1767711007776,0.010642,93991.0,93963.0,0.09056]
[1767711007973,0.09078828,93991.0,93963.0,0.09056]
[1767711008482,0.010643,93979.0,93963.0,0.09056]
[1767711008780,0.010642,93984.0,93950.0,0.09941793]
[1767711008972,0.010645,93961.0,93951.0,0.09056]
[1767711009477,0.010646,93953.0,93944.0,0.09056]
[1767711009779,0.09078828,93966.0,93940.0,0.09056]
[1767711010166,0.010646,93951.0,93940.0,0.08056]
[1767711010370,0.010644,93965.0,93940.0,0.08056]
[1767711010579,0.09078828,93966.0,93940.0,0.08056]
[1767711011075,0.09056,93973.0,93941.0,0.05420205]
[1767711011277,0.09056,93973.0,93945.0,0.05420205]
[1767711011486,0.09056,93982.0,93948.0,0.05420205]
[1767711011776,0.09078828,93977.0,93947.0,0.09941793]
[1767711011973,0.010644,93968.0,93950.0,0.05420205]
[1767711012280,0.010644,93970.0,93951.0,0.09056]
[1767711012483,0.010643,93975.0,93951.0,0.09056]
[1767711012679,0.09078828,93988.0,93955.0,0.15361998]
[1767711012982,0.01064,94003.0,93973.0,0.010643]
[1767711013180,0.09078828,94010.0,93977.0,0.05420205]
[1767711013378,0.09078828,94021.0,93986.0,0.010642]
[1767711013674,0.09078828,94021.0,93981.0,0.09941793]
[1767711013675,0.09078828,94021.0,93988.0,0.09941793]
[1767711013882,0.010639,94015.0,93989.0,0.09052]
[1767711014081,0.01064,94008.0,93989.0,0.09052]
[1767711014281,0.010639,94010.0,93989.0,0.09052]
[1767711014473,0.010639,94010.0,93970.0,0.13618774]
[1767711014474,0.09078828,93993.0,93961.0,0.05420205]
[1767711014673,0.22697602,93990.0,93953.0,0.010646]
[1767711014872,0.22697602,93990.0,93956.0,0.09941793]
[1767711014873,0.010643,93976.0,93956.0,0.09941793]
[1767711015198,0.09052,93975.0,93956.0,0.09941793]
[1767711015380,0.09052,93974.0,93957.0,0.09941793]
[1767711015579,0.010643,93977.0,93960.0,0.08167121]
[1767711015880,0.010644,93973.0,93948.0,0.010646]
[1767711016185,0.09078828,93972.0,93933.0,0.00166535]
[1767711016477,0.010645,93958.0,93934.0,0.16014566]
[1767711016789,0.010646,93949.0,93924.0,0.010649]
[1767711017080,0.09052,93951.0,93927.0,0.010649]
[1767711017279,0.09052,93951.0,93926.0,0.16014566]
[1767711017480,0.09078828,93950.0,93925.0,5.8e-07]
[1767711017781,0.010647,93939.0,93925.0,5.8e-07]
[1767711017981,0.010648,93932.0,93925.0,5.8e-07]
[1767711018182,0.010648,93933.0,93907.0,0.010651]
[1767711018485,0.09078828,93968.0,93920.0,0.13618774]
[1767711018779,0.00587445,93952.0,93927.0,0.00477155]
[1767711018973,0.09052,93967.0,93928.0,0.09052]
[1767711018974,0.10143328,93963.0,93928.0,0.09052]
[1767711019174,0.09078828,93975.0,93946.0,0.010647]
[1767711019374,0.010644,93967.0,93941.0,0.010647]
[1767711019577,0.09052,93972.0,93939.0,0.09052]
[1767711019780,0.010644,93970.0,93942.0,0.010647]
[1767711019980,0.010645,93964.0,93940.0,0.15950776]
[1767711020183,0.010644,93968.0,93943.0,0.15950776]
[1767711020489,0.010644,93965.0,93942.0,0.15950776]
[1767711020784,0.010644,93965.0,93943.0,0.16017438]
[1767711021185,0.010644,93971.0,93944.0,0.010647]
[1767711021484,0.09052,93979.0,93950.0,0.13618774]
[1767711021685,0.09052,93979.0,93962.0,0.010645]
[1767711021686,0.088484,93979.0,93962.0,0.010645]
[1767711021894,0.09078828,93985.0,93951.0,0.25097475]
[1767711022185,0.010642,93983.0,93951.0,0.09052]
[1767711022389,0.010642,93983.0,93952.0,0.16053003]
[1767711022589,0.09078828,93985.0,93958.0,0.010645]
[1767711022590,0.010643,93980.0,93958.0,0.010645]
[1767711023180,0.010642,93985.0,93964.0,0.010644]
[1767711023380,0.010642,93987.0,93959.0,0.010645]
[1767711023589,0.010642,93983.0,93959.0,0.010645]
[1767711023885,0.010643,93979.0,93954.0,0.010646]
[1767711024087,0.010643,93977.0,93951.0,0.09052]
[1767711024294,0.09078828,93981.0,93951.0,0.09052]
[1767711024585,0.010643,93974.0,93951.0,0.09052]
[1767711024784,0.08839276,93978.0,93961.0,0.010645]
[1767711024987,0.09078828,94002.0,93968.0,0.13618774]
[1767711025185,0.09078828,94002.0,93962.0,0.09052]
[1767711025186,0.09078828,94002.0,93985.0,0.010642]
[1767711025386,0.010637,94035.0,93969.0,0.09052]
[1767711025387,0.09078828,94012.0,93990.0,0.13618774]
[1767711025583,0.09078828,94024.0,94002.0,0.01064]
[1767711025893,0.09078828,94024.0,93984.0,0.010642]
[1767711025894,0.09052,94026.0,94001.0,0.09052]
[1767711026090,0.010638,94021.0,94002.0,0.09052]
[1767711026390,0.010639,94013.0,94003.0,0.09052]
[1767711026587,0.09078828,94019.0,94000.0,0.09052]
[1767711026790,0.05283184,94032.0,94000.0,0.09052]
[1767711026981,0.010639,94018.0,94000.0,0.09052]
[1767711027177,0.05283184,94060.0,94001.0,0.55899831]
[1767711027383,0.010636,94044.0,94019.0,0.010638]
[1767711027693,0.010636,94040.0,94015.0,0.09052]
[1767711027878,0.010636,94044.0,94016.0,0.101159]
[1767711028085,0.010637,94035.0,94017.0,0.09052]
[1767711028387,0.010637,94031.0,94017.0,0.09052]
[1767711028593,0.010636,94042.0,94017.0,0.09052]
[1767711028893,0.010635,94044.0,94010.0,0.09052]
[1767711029081,0.010635,94044.0,94011.0,0.09052]
[1767711029288,0.010635,94044.0,94021.0,0.010638]
[1767711029487,0.18130828,94045.0,94022.0,0.09052]
[1767711029794,0.010636,94043.0,94022.0,0.09052]
[1767711030289,0.09078828,94045.0,94024.0,0.010638]
[1767711030496,0.09078828,94045.0,94022.0,0.09052]
[1767711030895,0.010636,94040.0,94022.0,0.09052]
[1767711031089,0.10142328,94045.0,94022.0,0.09052]
[1767711031485,0.09078828,94045.0,94022.0,0.09052]
[1767711031693,0.09078828,94045.0,94022.0,0.101158]
[1767711031893,0.10142328,94045.0,94022.0,0.101158]
[1767711032192,0.010636,94042.0,94022.0,0.09052]
[1767711032596,0.09048,94050.0,94022.0,0.09052]
[1767711032890,0.010636,94041.0,94022.0,0.09052]
[1767711033091,0.09048,94050.0,94015.0,0.09048]
[1767711033092,0.010637,94033.0,94015.0,0.09048]
[1767711033297,0.010637,94033.0,94014.0,0.09048]
[1767711033492,0.010637,94027.0,94014.0,0.09048]
[1767711033698,0.09146417,94032.0,94007.0,0.15949126]
[1767711033899,0.010638,94024.0,94002.0,0.10112]
[1767711034093,0.010639,94017.0,94001.0,0.09048]
[1767711034302,0.09146417,94020.0,93998.0,0.09048]
[1767711034485,0.10210217,94020.0,93998.0,0.010641]
[1767711034884,0.09146417,94030.0,93995.0,0.09048]
[1767711035089,0.10210117,94029.0,94006.0,0.01064]
[1767711035286,0.010638,94023.0,94002.0,0.01064]
[1767711035602,0.09146417,94029.0,93998.0,0.010641]
[1767711035603,0.010638,94020.0,93998.0,0.010641]
[1767711035800,0.09146417,94025.0,93995.0,0.09048]
[1767711035995,0.101117,94031.0,93995.0,0.09048]
[1767711035996,0.09146417,94021.0,93995.0,0.09048]
[1767711036198,0.09146417,94019.0,93995.0,0.09048]
[1767711036403,0.09048,94018.0,93995.0,0.09048]
[1767711036596,0.09146417,94030.0,93995.0,0.101121]
[1767711036801,0.09146417,94040.0,94015.0,0.010639]
[1767711036998,0.010636,94037.0,94014.0,0.010639]
[1767711037398,0.010637,94034.0,94013.0,0.101119]
[1767711037593,0.09146417,94040.0,94013.0,0.09048]
[1767711037800,0.09048,94042.0,94015.0,0.010639]
[1767711038103,0.09048,94042.0,94032.0,0.010637]
[1767711038306,0.09146417,94051.0,94034.0,0.010637]
[1767711038603,0.10209917,94051.0,94030.0,0.09048]
[1767711038902,0.010635,94050.0,94030.0,0.101117]
[1767711039093,0.010635,94050.0,94031.0,0.010637]
[1767711039493,0.010635,94050.0,94030.0,0.09048]
[1767711039494,0.09146417,94051.0,94037.0,0.010636]
[1767711039701,0.09048,94059.0,94040.0,0.010636]
[1767711040006,0.09048,94061.0,94045.0,0.010635]
[1767711040203,0.010633,94067.0,94048.0,0.010635]
[1767711040702,0.18194417,94070.0,94044.0,0.09048]
[1767711040898,0.010633,94067.0,94048.0,0.010635]
[1767711041100,0.010633,94067.0,94048.0,0.00850163]
[1767711041397,0.19257717,94070.0,94044.0,0.09048]
[1767711041603,0.010633,94068.0,94044.0,0.09048]
[1767711041800,0.010631,94080.0,94062.0,0.010633]
[1767711042000,0.09146417,94081.0,94045.0,0.010635]
[1767711042001,0.09260588,94079.0,94055.0,0.09048]
[1767711042202,0.00212588,94079.0,94055.0,0.09048]
[1767711042396,0.00212588,94079.0,94068.0,0.010633]
[1767711043007,0.00212588,94079.0,94055.0,0.09048]
[1767711043202,0.010632,94078.0,94058.0,0.010634]
[1767711043398,0.00212588,94079.0,94031.0,0.36192]
[1767711043399,0.09359005,94079.0,94031.0,0.36192]
[1767711043704,0.010633,94070.0,94042.0,0.15876455]
[1767711044001,0.09146417,94073.0,94057.0,0.010634]
[1767711044206,0.01275788,94079.0,94062.0,0.010633]
[1767711044401,0.01275788,94079.0,94071.0,0.010632]
[1767711044402,0.00212588,94079.0,94071.0,0.010632]
[1767711044704,0.06541857,94102.0,94077.0,0.010632]
[1767711044705,0.010629,94098.0,94077.0,0.010632]
[1767711045004,0.09044,94100.0,94076.0,0.010632]
[1767711045216,0.01063,94097.0,94075.0,0.010632]
[1767711045408,0.01063,94094.0,94075.0,0.101072]
[1767711045605,0.00212521,94109.0,94078.0,0.010632]
[1767711045805,0.02906278,94117.0,94088.0,0.01116145]
[1767711046107,0.010627,94116.0,94096.0,0.01063]
[1767711046305,0.02906278,94117.0,94097.0,0.09044]
[1767711046498,0.06541857,94133.0,94098.0,0.09044]
[1767711046695,0.010628,94115.0,94099.0,0.09044]
[1767711046901,0.010628,94113.0,94100.0,0.09044]
[1767711047099,0.010628,94111.0,94100.0,0.09044]
[1767711047400,0.010628,94112.0,94100.0,0.09044]
[1767711047596,0.09146417,94118.0,94097.0,0.09044]
[1767711048208,0.09146417,94118.0,94079.0,0.01116145]
[1767711048209,0.09146417,94117.0,94090.0,0.09044]
[1767711048408,0.010629,94104.0,94090.0,0.09044]
[1767711048708,0.10209317,94105.0,94090.0,0.09044]
[1767711048901,0.09146417,94105.0,94090.0,0.09044]
[1767711049214,0.00212453,94139.0,94090.0,0.08830595]
[1767711049215,0.09146417,94121.0,94090.0,0.08830595]
[1767711049401,0.010628,94112.0,94090.0,0.08830595]
[1767711049811,0.09146417,94116.0,94090.0,0.08830595]
[1767711050104,0.09146417,94127.0,94092.0,0.01265857]
[1767711050304,0.09146417,94127.0,94099.0,0.010629]
[1767711050511,0.09044,94135.0,94119.0,0.010627]
[1767711050708,0.00212453,94139.0,94114.0,0.0904]
[1767711051013,0.09146417,94147.0,94128.0,0.010626]
[1767711051308,0.010623,94155.0,94127.0,0.0904]
[1767711051309,0.010625,94137.0,94127.0,0.0904]
[1767711051507,0.010626,94132.0,94121.0,0.0904]
[1767711051712,0.09146417,94136.0,94118.0,0.0904]
[1767711051909,0.09146417,94136.0,94119.0,0.010627]
[1767711052209,0.010626,94127.0,94118.0,0.0904]
[1767711052407,0.09146417,94144.0,94118.0,0.0904]
[1767711052408,0.010626,94129.0,94118.0,0.0904]
[1767711052602,0.09146417,94137.0,94118.0,0.0904]
[1767711052798,0.09146417,94134.0,94114.0,0.0904]
[1767711053014,0.10208917,94134.0,94112.0,0.101028]
[1767711053212,0.10208817,94145.0,94112.0,0.0904]
[1767711053511,0.09146417,94143.0,94112.0,0.0904]
[1767711054104,0.010626,94132.0,94112.0,0.0904]
[1767711054510,0.09146417,94139.0,94112.0,0.0904]
[1767711054813,0.010625,94133.0,94112.0,0.101028]
[1767711055003,0.010625,94134.0,94112.0,0.0904]
[1767711055201,0.010625,94134.0,94111.0,0.010628]
[1767711055202,0.06541857,94135.0,94098.0,0.010629]
[1767711055510,0.0904,94137.0,94103.0,0.16008057]
[1767711055704,0.0904,94137.0,94104.0,0.10227499]
[1767711055906,0.0904,94148.0,94132.0,0.010626]
[1767711056110,0.0904,94153.0,94124.0,0.0904]
[1767711056312,0.0904,94153.0,94125.0,0.0904]
[1767711056623,0.06754242,94169.0,94125.0,0.0904]
[1767711056624,0.0904,94159.0,94144.0,0.010624]
[1767711056915,0.010623,94158.0,94138.0,0.010625]
[1767711057110,0.18186417,94162.0,94137.0,0.0904]
[1767711057111,0.09146417,94161.0,94137.0,0.0904]
[1767711057313,0.09146417,94149.0,94132.0,0.0904]
[1767711058313,0.010623,94159.0,94137.0,0.010625]
[1767711058616,0.09146417,94160.0,94140.0,0.010625]
[1767711058915,0.09146417,94160.0,94132.0,0.0904]
[1767711059101,0.09146417,94160.0,94144.0,0.010624]
[1767711059306,0.00212385,94169.0,94149.0,0.010624]
[1767711059604,0.00212385,94169.0,94148.0,0.010624]
[1767711059605,0.010621,94168.0,94148.0,0.010624]
[1767711059803,0.010622,94165.0,94144.0,0.096024]